bitfinex-derivatives/quotes_BTCF0:USTF0_20241231
["timestamp","ask_amount","ask_price","bid_price","bid_amount"]
[1735659886121,0.001,95772.0,95754.0,0.0577]
[1735659886323,0.001,95772.0,95771.0,0.052283]
[1735659886522,0.052284,95771.0,95770.0,0.052283]
[1735659886723,0.052281,95776.0,95760.0,0.052289]
[1735659887029,0.052281,95776.0,95773.0,0.052282]
[1735659887231,0.3608,95796.0,95783.0,0.052277]
[1735659887533,0.052272,95792.0,95790.0,0.052273]
[1735659887834,0.3608,95796.0,95779.0,0.3608]
[1735659887835,0.052273,95789.0,95780.0,0.0576]
[1735659888226,0.052273,95789.0,95788.0,0.052274]
[1735659888635,0.052276,95785.0,95784.0,0.052276]
[1735659889233,0.3608,95792.0,95780.0,0.0576]
[1735659889432,0.05228,95776.0,95766.0,0.0558]
[1735659889732,0.052282,95773.0,95770.0,0.052284]
[1735659890031,0.3608,95774.0,95766.0,0.0558]
[1735659890227,0.052282,95773.0,95768.0,0.052284]
[1735659890427,0.052283,95771.0,95769.0,0.052284]
[1735659891229,0.3608,95774.0,95766.0,0.0558]
[1735659891829,0.413081,95774.0,95771.0,0.052283]
[1735659892025,0.3608,95774.0,95766.0,0.0558]
[1735659892227,0.052283,95772.0,95768.0,0.052284]
[1735659893128,0.052283,95772.0,95766.0,0.0558]
[1735659893334,0.052283,95772.0,95770.0,0.052283]
[1735659893732,0.053283,95772.0,95770.0,0.052283]
[1735659894831,0.001,95772.0,95767.0,0.052284]
[1735659895141,0.001,95772.0,95770.0,0.052283]
[1735659895142,0.053283,95772.0,95770.0,0.052283]
[1735659895636,0.001,95772.0,95766.0,0.0558]
[1735659895940,0.052285,95768.0,95767.0,0.052285]
[1735659897239,0.053285,95768.0,95767.0,0.052285]
[1735659897535,0.001,95768.0,95767.0,0.052285]
[1735659898731,0.053285,95768.0,95767.0,0.052285]
[1735659899425,0.052287,95765.0,95762.0,0.052288]
[1735659899631,0.001,95768.0,95761.0,0.37094652]
[1735659899827,0.053285,95768.0,95766.0,0.052285]
[1735659900029,0.052285,95767.0,95766.0,0.052285]
[1735659900230,0.001,95768.0,95767.0,0.052285]
[1735659900928,0.24969127,95784.0,95783.0,0.052277]
[1735659901637,0.24969127,95784.0,95772.0,0.3608]
[1735659901832,0.3608,95785.0,95779.0,0.052278]
[1735659902028,0.052276,95784.0,95768.0,0.052284]
[1735659902238,0.3608,95785.0,95761.0,0.413088]
[1735659902239,0.052277,95783.0,95778.0,0.052279]
[1735659902452,0.052277,95783.0,95779.0,0.052278]
[1735659902641,0.052278,95780.0,95767.0,0.01008141]
[1735659902831,0.052279,95779.0,95776.0,0.05228]
[1735659903031,0.001,95768.0,95767.0,0.053285]
[1735659903738,0.052279,95779.0,95776.0,0.05228]
[1735659903936,0.052286,95766.0,95763.0,0.052287]
[1735659904140,0.10471489,95773.0,95764.0,0.052287]
[1735659904336,0.050286,95765.0,95764.0,0.052287]
[1735659905836,0.001,95768.0,95755.0,0.0569]
[1735659906236,0.001,95768.0,95753.0,0.00156644]
[1735659906237,0.052291,95757.0,95756.0,0.052291]
[1735659906535,0.3608,95769.0,95753.0,0.00156644]
[1735659906742,0.3608,95781.0,95759.0,0.57022978]
[1735659907044,0.05228,95778.0,95774.0,0.052281]
[1735659907239,0.05228,95778.0,95775.0,0.052281]
[1735659907434,0.05228,95778.0,95761.0,0.052288]
[1735659907630,0.05228,95778.0,95574.0,1.09567098]
[1735659907631,0.052284,95770.0,95766.0,0.052285]
[1735659907847,0.052284,95770.0,95768.0,0.052285]
[1735659908635,0.3608,95773.0,95759.0,0.3608]
[1735659908943,0.052285,95768.0,95766.0,0.052286]
[1735659909545,0.413082,95773.0,95772.0,0.052283]
[1735659909955,0.414082,95773.0,95772.0,0.052283]
[1735659910446,0.052285,95768.0,95760.0,0.052289]
[1735659910746,0.052288,95764.0,95763.0,0.052287]
[1735659911541,0.001,95768.0,95767.0,0.052285]
[1735659912040,0.001,95768.0,95750.0,0.46551489]
[1735659912041,0.052286,95765.0,95764.0,0.052287]
[1735659912834,0.3608,95765.0,95743.0,0.1111]
[1735659913040,0.052291,95756.0,95749.0,0.052295]
[1735659913243,0.3608,95757.0,95746.0,0.10471489]
[1735659913439,0.3608,95757.0,95756.0,0.052291]
[1735659913738,0.052289,95760.0,95748.0,0.3608]
[1735659913934,0.00188001,95765.0,95764.0,0.052287]
[1735659914143,0.001,95765.0,95764.0,0.052287]
[1735659914348,0.052279,95778.0,95773.0,0.052282]
[1735659914539,0.24969127,95779.0,95765.0,0.0528]
[1735659914746,0.052283,95772.0,95771.0,0.052283]
[1735659914945,0.413083,95772.0,95771.0,0.052283]
[1735659915648,0.3608,95772.0,95771.0,0.052283]
[1735659917347,0.45916776,95772.0,95771.0,0.052283]
[1735659917943,0.45916776,95772.0,95771.0,0.06251253]
[1735659918252,0.3618,95772.0,95771.0,0.06251253]
[1735659919141,0.3618,95772.0,95745.0,0.052297]
[1735659919353,0.05229,95759.0,95749.0,0.052295]
[1735659919557,0.3608,95764.0,95755.0,0.052292]
[1735659919558,0.10471489,95760.0,95755.0,0.052292]
[1735659919855,0.052291,95756.0,95755.0,0.052292]
[1735659920351,0.052293,95754.0,95751.0,0.052294]
[1735659920647,0.052295,95750.0,95744.0,0.18661363]
[1735659920854,0.052295,95750.0,95749.0,0.052295]
[1735659921554,0.052292,95755.0,95754.0,0.052292]
[1735659922639,0.001,95756.0,95755.0,0.052292]
[1735659923143,0.053291,95756.0,95755.0,0.052292]
[1735659923549,0.052291,95756.0,95755.0,0.052292]
[1735659923748,0.3608,95764.0,95752.0,0.052293]
[1735659923749,0.052288,95763.0,95752.0,0.052293]
[1735659923951,0.10471489,95762.0,95744.0,0.01060442]
[1735659924150,0.052295,95750.0,95749.0,0.052295]
[1735659924450,0.3628,95756.0,95744.0,0.01060442]
[1735659924959,0.415092,95756.0,95754.0,0.052292]
[1735659925153,0.052292,95755.0,95754.0,0.052292]
[1735659926754,0.053292,95755.0,95754.0,0.052292]
[1735659927257,0.054292,95755.0,95754.0,0.052292]
[1735659927749,0.052295,95751.0,95744.0,0.01060442]
[1735659927950,0.052295,95749.0,95744.0,0.01060442]
[1735659928264,0.052295,95749.0,95748.0,0.413096]
[1735659929040,0.052295,95749.0,95748.0,0.3608]
[1735659929658,0.053295,95749.0,95748.0,0.3608]
[1735659929852,0.053295,95749.0,95747.0,0.052296]
[1735659930156,0.053295,95749.0,95748.0,0.052296]
[1735659930356,0.054295,95749.0,95748.0,0.052296]
[1735659931954,0.002,95749.0,95743.0,0.052298]
[1735659932151,0.002,95749.0,95742.0,0.00156662]
[1735659932350,0.054295,95749.0,95748.0,0.052296]
[1735659932662,0.053295,95749.0,95748.0,0.052296]
[1735659933050,0.054295,95749.0,95748.0,0.052296]
[1735659935255,0.002,95749.0,95742.0,0.00156662]
[1735659935452,0.052297,95746.0,95745.0,0.052297]
[1735659936862,0.053297,95746.0,95745.0,0.052297]
[1735659937355,0.052298,95743.0,95742.0,0.00156662]
[1735659939253,0.053298,95743.0,95742.0,0.00156662]
[1735659939455,0.054298,95743.0,95742.0,0.00156662]
[1735659940458,0.001,95743.0,95742.0,0.00156662]
[1735659940664,0.002,95743.0,95742.0,0.05386562]
[1735659945463,0.413086,95766.0,95742.0,0.05386562]
[1735659945464,0.3608,95766.0,95765.0,0.052286]
[1735659945663,0.31211409,95767.0,95766.0,0.052286]
[1735659945969,0.22861409,95767.0,95766.0,0.052286]
[1735659946662,0.22861409,95767.0,95766.0,1.552286]
[1735659946862,0.052279,95779.0,95767.0,0.052285]
[1735659947059,0.052279,95779.0,95766.0,1.5]
[1735659947060,0.052279,95779.0,95775.0,0.05228]
[1735659947265,0.3608,95780.0,95769.0,0.10471489]
[1735659947473,0.3608,95780.0,95779.0,0.052279]
[1735659949869,0.3608,95780.0,95779.0,0.053279]
[1735659950565,0.3638,95780.0,95779.0,0.052279]
[1735659950766,0.3638,95780.0,95766.0,0.01063773]
[1735659951073,0.3638,95780.0,95765.0,0.1046]
[1735659951074,0.05228,95778.0,95776.0,0.05228]
[1735659951362,0.052283,95772.0,95768.0,0.052284]
[1735659951567,0.052283,95772.0,95755.0,0.413092]
[1735659951568,0.052283,95772.0,95769.0,0.052284]
[1735659951771,0.0534,95778.0,95760.0,0.01038759]
[1735659952070,0.0534,95778.0,95755.0,0.413092]
[1735659952071,0.052291,95758.0,95755.0,0.413092]
[1735659952261,0.0539,95757.0,95755.0,0.413092]
[1735659952657,0.052294,95751.0,95745.0,0.18661363]
[1735659952864,0.052297,95746.0,95745.0,0.052297]
[1735659953059,0.052293,95753.0,95752.0,0.052293]
[1735659953473,0.1095,95757.0,95743.0,0.10471489]
[1735659953775,0.052295,95749.0,95748.0,0.052295]
[1735659954561,0.3608,95753.0,95730.0,0.10471489]
[1735659954762,0.413098,95743.0,95726.0,0.52024]
[1735659954982,0.413098,95743.0,95733.0,0.052304]
[1735659955168,0.413098,95743.0,95734.0,0.052303]
[1735659956168,0.414098,95743.0,95734.0,0.052303]
[1735659956567,0.415098,95743.0,95734.0,0.052303]
[1735659957378,0.052305,95730.0,95729.0,0.052306]
[1735659958378,0.3608,95735.0,95723.0,0.052309]
[1735659958564,0.3608,95726.0,95718.0,0.00013045]
[1735659958764,0.3608,95726.0,95700.0,0.56824]
[1735659958970,0.46551489,95716.0,95714.0,0.052314]
[1735659959172,0.3608,95726.0,95714.0,0.3608]
[1735659959379,0.002,95730.0,95714.0,0.3608]
[1735659959568,0.002,95730.0,95729.0,0.052306]
[1735659959877,0.10471489,95740.0,95730.0,0.052305]
[1735659960372,0.052303,95735.0,95734.0,0.052303]
[1735659961267,0.052303,95734.0,95693.0,0.3608]
[1735659961470,0.3608,95719.0,95702.0,1.5]
[1735659961667,0.052316,95712.0,95711.0,0.052316]
[1735659962063,0.052318,95707.0,95700.0,0.57884372]
[1735659962275,0.052318,95707.0,95706.0,0.05388621]
[1735659962484,0.3608,95728.0,95706.0,0.00156721]
[1735659962674,0.052309,95724.0,95719.0,0.052311]
[1735659962879,0.3608,95728.0,95727.0,0.052307]
[1735659963365,0.3608,95728.0,95712.0,0.3608]
[1735659963569,0.3608,95728.0,95718.0,0.10471489]
[1735659963871,0.3608,95728.0,95727.0,0.052307]
[1735659964078,0.3608,95728.0,95712.0,0.37118361]
[1735659964079,0.3618,95728.0,95712.0,0.37118361]
[1735659964271,0.3608,95719.0,95700.0,0.56884]
[1735659964579,0.052314,95715.0,95711.0,0.052316]
[1735659964775,0.3608,95719.0,95700.0,0.56884]
[1735659964776,0.3608,95719.0,95700.0,0.1]
[1735659964971,0.413118,95707.0,95700.0,0.1006]
[1735659965166,0.413118,95707.0,95700.0,0.1]
[1735659965370,0.052318,95707.0,95704.0,0.052319]
[1735659965578,0.052318,95707.0,95700.0,0.1]
[1735659965780,0.052318,95707.0,95706.0,0.05388621]
[1735659966276,0.053318,95707.0,95706.0,0.00156721]
[1735659966684,0.002,95707.0,95700.0,0.152321]
[1735659966880,0.052319,95705.0,95700.0,0.152321]
[1735659967087,0.052321,95703.0,95700.0,0.152321]
[1735659967276,0.052321,95702.0,95700.0,0.152321]
[1735659967476,0.052321,95701.0,95700.0,0.152321]
[1735659967678,0.052321,95701.0,95700.0,0.1]
[1735659968978,0.107821,95701.0,95700.0,0.1]
[1735659969481,0.052325,95695.0,95690.0,0.052327]
[1735659969782,0.052325,95695.0,95692.0,0.052326]
[1735659969991,0.052325,95695.0,95684.0,0.37105666]
[1735659970189,0.052325,95695.0,95685.0,0.05233]
[1735659970377,0.052325,95695.0,95693.0,0.052325]
[1735659970577,0.10471489,95700.0,95684.0,0.37105666]
[1735659970779,0.002,95701.0,95700.0,0.052322]
[1735659971177,0.052323,95698.0,95684.0,0.37105666]
[1735659971372,0.052325,95696.0,95692.0,0.052326]
[1735659971680,0.052325,95696.0,95684.0,0.37105666]
[1735659971883,0.001,95695.0,95684.0,0.37105666]
[1735659972085,0.001,95695.0,95694.0,0.052325]
[1735659972271,0.002,95695.0,95694.0,0.052325]
[1735659972479,0.001,95695.0,95694.0,0.052325]
[1735659973190,0.002,95695.0,95694.0,0.052325]
[1735659975379,0.002,95695.0,95694.0,0.06276004]
[1735659975580,0.3608,95712.0,95694.0,0.42356004]
[1735659975882,0.413115,95712.0,95711.0,0.052316]
[1735659976479,0.052318,95707.0,95706.0,0.052318]
[1735659976681,0.052316,95711.0,95694.0,0.052325]
[1735659976876,0.052323,95698.0,95695.0,0.052324]
[1735659977193,0.052324,95697.0,95696.0,0.052324]
[1735659977892,0.052321,95702.0,95701.0,0.052321]
[1735659978987,0.3608,95704.0,95703.0,0.05232]
[1735659979491,0.41112,95704.0,95703.0,0.05232]
[1735659979679,0.3588,95704.0,95703.0,0.05232]
[1735659979882,0.3608,95704.0,95703.0,0.05232]
[1735659980079,0.053316,95711.0,95710.0,0.052316]
[1735659980487,0.3608,95714.0,95710.0,0.052316]
[1735659980684,0.413114,95714.0,95713.0,0.052315]
[1735659981288,0.3608,95714.0,95713.0,0.052315]
[1735659981489,0.3608,95714.0,95710.0,0.052316]
[1735659981490,0.00156788,95722.0,95721.0,0.05231]
[1735659981884,0.05387788,95722.0,95721.0,0.05231]
[1735659982979,0.05487788,95722.0,95721.0,0.05231]
[1735659983185,0.052315,95717.0,95716.0,0.052313]
[1735659984501,0.052315,95717.0,95716.0,0.053313]
[1735659985891,0.053315,95717.0,95716.0,0.053313]
[1735659988496,0.05324988,95717.0,95716.0,0.053313]
[1735659988994,0.05324988,95717.0,95716.0,0.001]
[1735659989393,0.052327,95691.0,95690.0,0.06261029]
[1735659989589,0.052327,95691.0,95686.0,0.23894263]
[1735659989590,0.052329,95687.0,95686.0,0.23894263]
[1735659989901,0.052329,95687.0,95686.0,0.18661363]
[1735659990504,0.051332,95681.0,95680.0,0.24881817]
[1735659990693,0.3608,95681.0,95666.0,0.00156787]
[1735659990999,0.41314,95667.0,95666.0,0.05390787]
[1735659991397,0.41214,95667.0,95666.0,0.05390787]
[1735659992600,0.41314,95667.0,95666.0,0.05390787]
[1735659992804,0.41314,95667.0,95666.0,0.00156787]
[1735659992991,0.41314,95667.0,95656.0,0.052346]
[1735659992992,0.052345,95657.0,95656.0,0.052346]
[1735659994192,0.3608,95658.0,95650.0,0.00010292]
[1735659994397,0.052349,95651.0,95650.0,0.00010292]
[1735659994605,0.052349,95651.0,95650.0,0.05245192]
[1735659995501,0.052349,95651.0,95650.0,0.00010292]
[1735659997205,0.052355,95640.0,95639.0,0.3608]
[1735659998101,0.052352,95646.0,95639.0,0.413155]
[1735659998295,0.001,95640.0,95639.0,0.3608]
[1735659998703,0.001,95640.0,95639.0,0.413155]
[1735659999208,0.10471489,95650.0,95639.0,0.3608]
[1735659999397,0.10471489,95650.0,95639.0,1.8608]
[1735659999601,0.10471489,95650.0,95649.0,0.05235]
[1735659999799,0.413145,95658.0,95639.0,1.8608]
[1735660000007,0.3608,95658.0,95639.0,1.8608]
[1735660000312,0.3608,95658.0,95641.0,0.052354]
[1735660000502,0.002,95650.0,95649.0,0.05235]
[1735660000705,0.413135,95676.0,95673.0,0.052337]
[1735660001001,0.052337,95673.0,95660.0,0.3608]
[1735660001202,0.052337,95673.0,95670.0,0.052338]
[1735660001503,0.3608,95676.0,95674.0,0.052336]
[1735660001707,0.413135,95676.0,95674.0,0.052336]
[1735660002002,0.413135,95676.0,95675.0,0.052336]
[1735660003100,0.3608,95676.0,95675.0,0.052336]
[1735660003402,0.3608,95676.0,95666.0,0.10471489]
[1735660003403,0.00156815,95691.0,95690.0,0.052327]
[1735660003600,0.00156815,95691.0,95660.0,0.002]
[1735660003601,0.001,95673.0,95660.0,0.002]
[1735660003799,0.413143,95661.0,95660.0,0.054344]
[1735660004207,0.413143,95661.0,95660.0,0.052344]
[1735660004705,0.3608,95661.0,95641.0,0.0506]
[1735660004899,0.052356,95637.0,95628.0,0.0101716]
[1735660005099,0.3608,95647.0,95639.0,0.052355]
[1735660005412,0.3608,95647.0,95628.0,0.0610716]
[1735660005616,0.052356,95637.0,95635.0,0.052357]
[1735660006402,0.052356,95637.0,95629.0,0.05236]
[1735660006710,0.052356,95637.0,95630.0,0.05236]
[1735660006894,0.052356,95637.0,95628.0,0.103261]
[1735660007099,0.052356,95637.0,95628.0,0.0509]
[1735660007302,0.10471489,95638.0,95623.0,0.46868]
[1735660007499,0.3608,95631.0,95627.0,0.052362]
[1735660007703,0.052361,95628.0,95627.0,0.052362]
[1735660007902,0.3608,95631.0,95630.0,0.05236]
[1735660008506,0.41316,95631.0,95628.0,0.052361]
[1735660008708,0.05236,95630.0,95624.0,0.052363]
[1735660008911,0.001,95628.0,95623.0,0.46868]
[1735660009908,0.001,95628.0,95627.0,0.052362]
[1735660010503,0.052361,95628.0,95627.0,0.052362]
[1735660010910,0.053361,95628.0,95627.0,0.052362]
[1735660011112,0.055361,95628.0,95627.0,0.052362]
[1735660011614,0.056361,95628.0,95627.0,0.052362]
[1735660012016,0.004,95628.0,95600.0,0.1]
[1735660012311,0.052366,95620.0,95606.0,0.3608]
[1735660012504,0.052363,95626.0,95606.0,0.3608]
[1735660012711,0.052363,95626.0,95622.0,0.052364]
[1735660013307,0.002,95628.0,95619.0,0.3608]
[1735660013611,0.001,95628.0,95626.0,0.052362]
[1735660013809,0.001,95628.0,95627.0,0.0513]
[1735660014211,0.001,95628.0,95595.0,0.3608]
[1735660014212,0.052364,95623.0,95622.0,0.001]
[1735660014413,0.413164,95623.0,95622.0,0.001]
[1735660014809,0.413164,95623.0,95614.0,0.052369]
[1735660014810,0.052366,95620.0,95614.0,0.052369]
[1735660015022,0.052368,95617.0,95614.0,0.052369]
[1735660015510,0.052368,95616.0,95614.0,0.052369]
[1735660016516,0.3618,95623.0,95615.0,0.052368]
[1735660016819,0.052365,95621.0,95615.0,0.052368]
[1735660017008,0.052366,95620.0,95615.0,0.052368]
[1735660017417,0.052366,95619.0,95615.0,0.052368]
[1735660017717,0.36164,95623.0,95615.0,0.053368]
[1735660017718,0.052367,95617.0,95615.0,0.053368]
[1735660018105,0.36264,95623.0,95615.0,0.001]
[1735660018317,0.00084,95623.0,95621.0,0.052365]
[1735660018620,0.36164,95631.0,95627.0,0.052362]
[1735660018811,0.3608,95631.0,95628.0,0.052361]
[1735660019012,0.3608,95631.0,95618.0,0.3608]
[1735660019213,0.052361,95628.0,95619.0,0.052366]
[1735660019415,0.052361,95628.0,95627.0,0.052362]
[1735660020222,0.3608,95631.0,95618.0,0.37127715]
[1735660020407,0.3608,95623.0,95617.0,0.052367]
[1735660020613,0.3608,95623.0,95621.0,0.001]
[1735660020814,0.052365,95622.0,95621.0,0.001]
[1735660021217,0.414006,95623.0,95600.0,0.1]
[1735660021218,0.36164,95623.0,95600.0,0.1]
[1735660021417,0.413175,95603.0,95600.0,0.1]
[1735660022224,0.052387,95581.0,95578.0,0.052389]
[1735660022423,0.052387,95581.0,95574.0,0.052391]
[1735660022611,0.052387,95581.0,95573.0,0.0557]
[1735660022813,0.052393,95570.0,95569.0,0.46888]
[1735660023017,0.052393,95570.0,95560.0,0.3608]
[1735660023018,0.3608,95574.0,95560.0,0.3608]
[1735660023522,0.052394,95569.0,95567.0,0.052394]
[1735660023916,0.3608,95574.0,95560.0,0.01066605]
[1735660024122,0.052396,95565.0,95558.0,0.00156951]
[1735660024324,0.052393,95570.0,95558.0,0.00156951]
[1735660024521,0.052399,95560.0,95558.0,0.05396951]
[1735660025223,0.052403,95552.0,95545.0,0.052406]
[1735660025421,0.3608,95554.0,95529.0,0.3608]
[1735660025620,0.052409,95542.0,95534.0,0.052413]
[1735660025926,0.3608,95544.0,95530.0,0.31247411]
[1735660026114,0.10471489,95540.0,95530.0,0.31247411]
[1735660026320,0.052414,95532.0,95530.0,0.31247411]
[1735660026822,0.3608,95544.0,95530.0,0.31247411]
[1735660027023,0.3608,95554.0,95530.0,0.31247411]
[1735660027024,0.36164,95554.0,95553.0,0.052402]
[1735660027219,0.3608,95554.0,95553.0,0.052402]
[1735660027521,0.3608,95554.0,95540.0,0.3608]
[1735660027724,0.413202,95554.0,95547.0,0.052405]
[1735660027916,0.052402,95553.0,95548.0,0.052405]
[1735660028215,0.3608,95554.0,95538.0,0.3608]
[1735660028417,0.3608,95554.0,95542.0,0.052408]
[1735660028617,0.052403,95553.0,95538.0,0.3608]
[1735660029024,0.052403,95553.0,95545.0,0.052407]
[1735660029220,0.052403,95553.0,95538.0,0.3608]
[1735660029431,0.002,95553.0,95538.0,0.3608]
[1735660030127,0.052405,95548.0,95544.0,0.052407]
[1735660030718,0.004,95553.0,95538.0,0.51883138]
[1735660030919,0.3608,95554.0,95551.0,0.052403]
[1735660031525,0.3608,95554.0,95552.0,0.052403]
[1735660031821,0.052404,95550.0,95544.0,0.052407]
[1735660032021,0.3608,95554.0,95544.0,0.052407]
[1735660032234,0.052406,95547.0,95544.0,0.052407]
[1735660032530,0.001,95548.0,95544.0,0.052407]
[1735660032723,0.052406,95546.0,95544.0,0.052407]
[1735660033030,0.3608,95545.0,95529.0,0.01049849]
[1735660033232,0.052412,95536.0,95531.0,0.052414]
[1735660033420,0.3608,95545.0,95528.0,0.3608]
[1735660033731,0.05242,95522.0,95519.0,0.3608]
[1735660034426,0.052421,95520.0,95516.0,0.052422]
[1735660034924,0.3608,95529.0,95514.0,0.00157036]
[1735660034925,0.001,95522.0,95514.0,0.00157036]
[1735660035130,0.001,95522.0,95521.0,0.41322]
[1735660035627,0.052412,95536.0,95524.0,0.052418]
[1735660035824,0.052412,95536.0,95515.0,0.0507]
[1735660036019,0.052413,95534.0,95528.0,0.052416]
[1735660036323,0.001,95522.0,95521.0,0.05242]
[1735660036825,0.002,95522.0,95514.0,0.36237036]
[1735660037026,0.054419,95522.0,95514.0,0.3608]
[1735660037228,0.054419,95522.0,95517.0,0.052422]
[1735660037428,0.053419,95522.0,95517.0,0.052422]
[1735660037628,0.054419,95522.0,95517.0,0.052422]
[1735660037826,0.053419,95522.0,95518.0,0.052421]
[1735660038131,0.053419,95522.0,95514.0,0.3608]
[1735660038132,0.053419,95522.0,95519.0,0.052421]
[1735660038529,0.002,95522.0,95521.0,0.05242]
[1735660039126,0.001,95522.0,95521.0,1.55242]
[1735660039432,0.002,95522.0,95521.0,1.55242]
[1735660039633,0.3608,95549.0,95528.0,0.052416]
[1735660039934,0.3608,95538.0,95530.0,0.3608]
[1735660040131,0.052413,95536.0,95535.0,0.052412]
[1735660041225,0.3608,95538.0,95530.0,0.3608]
[1735660041427,0.001,95536.0,95519.0,0.01069623]
[1735660041629,0.052414,95532.0,95531.0,0.052414]
[1735660042431,0.052417,95526.0,95525.0,0.052418]
[1735660042626,0.052425,95511.0,95510.0,0.00013573]
[1735660043233,0.052431,95501.0,95499.0,0.00157061]
[1735660044126,0.051431,95501.0,95499.0,0.00157061]
[1735660045131,0.052431,95501.0,95500.0,0.101]
[1735660045334,0.052441,95483.0,95482.0,0.052441]
[1735660046136,0.3608,95492.0,95478.0,0.3608]
[1735660046137,0.51883138,95492.0,95478.0,0.3608]
[1735660046344,0.052443,95479.0,95478.0,0.3608]
[1735660047031,0.052443,95479.0,95478.0,0.413243]
[1735660047626,0.001,95479.0,95478.0,0.413243]
[1735660048229,0.054443,95479.0,95478.0,0.3608]
[1735660049736,0.052447,95473.0,95467.0,0.01046062]
[1735660050037,0.052447,95473.0,95468.0,0.413248]
[1735660050235,0.002,95479.0,95471.0,0.052447]
[1735660050444,0.052445,95476.0,95471.0,0.052447]
[1735660050830,0.001,95473.0,95468.0,0.3608]
[1735660051139,0.001,95473.0,95471.0,0.052447]
[1735660051342,0.002,95473.0,95471.0,0.413247]
[1735660051638,0.001,95473.0,95471.0,0.052447]
[1735660051839,0.052445,95475.0,95471.0,0.052447]
[1735660052337,0.052445,95475.0,95469.0,0.3608]
[1735660052553,0.001,95476.0,95474.0,0.052445]
[1735660053434,0.001,95473.0,95471.0,0.052447]
[1735660053630,0.052433,95498.0,95471.0,0.052447]
[1735660053827,0.3608,95504.0,95490.0,0.3608]
[1735660054036,0.05243,95502.0,95496.0,0.052433]
[1735660054228,0.3608,95512.0,95510.0,0.052426]
[1735660054434,0.3608,95528.0,95509.0,0.3608]
[1735660054728,0.3608,95534.0,95522.0,0.052419]
[1735660055132,0.18653361,95544.0,95533.0,0.052413]
[1735660055340,0.18653361,95544.0,95535.0,0.3608]
[1735660055539,0.00084,95550.0,95535.0,0.3608]
[1735660055845,0.3608,95561.0,95549.0,0.052404]
[1735660056340,0.052402,95555.0,95543.0,0.3608]
[1735660056536,0.36168001,95561.0,95543.0,0.3608]
[1735660056844,0.0524,95557.0,95554.0,0.052401]
[1735660057135,0.052401,95556.0,95554.0,0.052401]
[1735660057533,0.052402,95553.0,95549.0,0.052404]
[1735660058938,0.3608,95552.0,95543.0,0.3608]
[1735660059245,0.052408,95543.0,95526.0,0.052417]
[1735660059443,0.3608,95544.0,95522.0,0.24926782]
[1735660059444,0.052418,95524.0,95522.0,0.24926782]
[1735660059638,0.3608,95523.0,95522.0,0.24926782]
[1735660060435,0.3608,95523.0,95511.0,0.052425]
[1735660060436,0.37100693,95523.0,95511.0,0.052425]
[1735660060636,0.3608,95512.0,95499.0,0.46944]
[1735660060846,0.052428,95506.0,95505.0,0.052429]
[1735660061364,0.3608,95512.0,95487.0,0.24926782]
[1735660061365,0.052435,95494.0,95493.0,0.052435]
[1735660061938,0.3608,95512.0,95485.0,0.3608]
[1735660062139,0.37123232,95512.0,95505.0,0.002]
[1735660062342,0.052428,95506.0,95505.0,0.002]
[1735660063344,0.36070112,95512.0,95505.0,0.002]
[1735660063549,0.36070112,95512.0,95504.0,0.052429]
[1735660063748,0.052429,95505.0,95504.0,0.052429]
[1735660065650,0.053429,95505.0,95504.0,0.060429]
[1735660065852,0.001,95505.0,95504.0,0.063429]
[1735660066549,0.3608,95529.0,95504.0,0.063429]
[1735660066752,0.052417,95527.0,95523.0,0.052418]
[1735660067048,0.052418,95525.0,95523.0,0.052418]
[1735660067354,0.052418,95525.0,95524.0,0.052418]
[1735660068669,0.052422,95519.0,95518.0,0.052421]
[1735660069652,0.3608,95521.0,95509.0,0.3608]
[1735660070137,0.052425,95514.0,95513.0,0.052424]
[1735660071546,0.052425,95514.0,95513.0,0.057424]
[1735660071739,0.3608,95529.0,95514.0,0.052423]
[1735660071943,0.3608,95529.0,95526.0,0.052417]
[1735660072144,0.3608,95529.0,95520.0,0.05242]
[1735660072145,0.052418,95526.0,95520.0,0.05242]
[1735660072346,0.3608,95529.0,95521.0,0.052419]
[1735660072347,0.052418,95525.0,95521.0,0.052419]
[1735660072541,0.01040813,95535.0,95517.0,0.3608]
[1735660072746,0.3608,95540.0,95517.0,0.3608]
[1735660072747,0.3608,95540.0,95539.0,0.05241]
[1735660073042,0.3608,95550.0,95544.0,0.052407]
[1735660073243,0.36237067,95545.0,95534.0,0.3608]
[1735660073448,0.052412,95535.0,95534.0,0.3608]
[1735660073747,0.052412,95535.0,95515.0,0.3608]
[1735660073748,0.3608,95535.0,95515.0,0.3608]
[1735660073946,0.3608,95535.0,95521.0,0.052419]
[1735660074147,0.052413,95534.0,95521.0,0.052419]
[1735660074342,0.37142227,95535.0,95514.0,0.001]
[1735660074540,0.37142227,95535.0,95520.0,0.002]
[1735660074749,0.3608,95535.0,95520.0,0.002]
[1735660075063,0.3608,95535.0,95520.0,0.15803138]
[1735660075254,0.3608,95535.0,95534.0,0.052413]
[1735660076254,0.052411,95538.0,95525.0,0.3608]
[1735660076451,0.052411,95538.0,95537.0,0.052411]
[1735660077548,0.053411,95538.0,95537.0,0.052411]
[1735660077941,0.058411,95538.0,95537.0,0.053411]
[1735660078451,0.057411,95538.0,95537.0,0.053411]
[1735660078650,0.424211,95538.0,95537.0,0.054411]
[1735660080157,0.424211,95538.0,95537.0,0.002]
[1735660080561,0.424211,95538.0,95517.0,0.3608]
[1735660080753,0.011,95538.0,95537.0,0.052411]